fUST/lending_fUST_20251014
["ID","MTS","AMOUNT","RATE_DAILY","PERIOD"]
[391176480,1760407859653,-500.0,0.00023286,2]
[391176481,1760407859663,-151.0,0.00023286,2]
[391176482,1760407859672,-151.0,0.00023286,2]
[391176483,1760407859682,-153.1955391,0.0002334,2]
[391176484,1760407859691,-500.0,0.0002334,2]
[391176485,1760407859700,-198.87405269,0.0002334,2]
[391176486,1760407859709,-500.0,0.0002334,2]
[391176487,1760407859719,-160.71370183,0.0002334,2]
[391176488,1760407859728,-210.37556942,0.0002334,2]
[391176489,1760407859738,-247.46691502,0.00023376,2]
[391176490,1760407859747,-500.0,0.00023395,2]
[391176491,1760407859757,-500.0,0.00023395,2]
[391176492,1760407859766,-500.0,0.0002345,2]
[391176493,1760407859775,-500.0,0.0002345,2]
[391176494,1760407859784,-547.0,0.00023505,2]
[391176495,1760407859794,-500.0,0.00023505,2]
[391176496,1760407859803,-720.0,0.00023546,20]
[391176497,1760407859813,-500.0,0.0002356,2]
[391176498,1760407859823,-2500.0,0.00023564,2]
[391176499,1760407859832,-22826.99,0.000236,3]
[391176500,1760407859842,-500.0,0.00023614,2]
[391176501,1760407859851,-379.56,0.00023642,2]
[391176502,1760407859860,-2500.0,0.00023664,2]
[391176503,1760407859869,-2008.96171624,0.00023664,2]
[391176504,1760407859878,-2500.0,0.00023664,2]
[391176505,1760407859888,-500.0,0.00023669,2]
[391176506,1760407859897,-230.15823635,0.00023713,2]
[391176507,1760407859908,-500.0,0.00023724,2]
[391176508,1760407859917,-500.0,0.00023779,2]
[391176509,1760407859926,-286.59141555,0.00023808,11]
[391176510,1760407859936,-950.17326854,0.00023833,2]
[391176511,1760407859946,-500.0,0.00023834,2]
[391176512,1760407859955,-500.0,0.00023888,2]
[391176513,1760407859964,-56648.46,0.000239,7]
[391176514,1760407859973,-270.66693831,0.00023976,2]
[391176515,1760407859983,-402.43064913,0.00024,7]
[391176516,1760407859992,-3000.0,0.00024112,2]
[391176517,1760407860001,-2370.96013327,0.00024212,2]
[391176518,1760407860011,-1238.50649468,0.00024212,2]
[391176519,1760407860020,-22826.99,0.000245,3]
[391176520,1760407860029,-293.86696159,0.00024576,2]
[391176521,1760407860039,-1127442.030156,0.000246,2]
[391176522,1760407860049,-402.43064913,0.000246,3]
[391176523,1760407860059,-45653.98,0.000246,3]
[391176524,1760407860069,-1500.0,0.00024657,8]
[391176525,1760407860079,-3500.0,0.0002466,2]
[391176526,1760407860088,-1550.14624559,0.00024719,2]
[391176527,1760407860098,-759.12,0.00024767,2]
[391176528,1760407860107,-500.0,0.00024773,2]
[391176529,1760407860117,-500.0,0.00024773,2]
[391176530,1760407860126,-500.0,0.00024773,2]
[391176531,1760407860136,-252.09753764,0.00024773,2]
[391176532,1760407860146,-500.0,0.00024773,2]
[391176533,1760407860155,-640.98837848,0.00024773,2]
[391176534,1760407860164,-500.0,0.00024773,2]
[391176535,1760407860174,-501.13410543,0.00024773,2]
[391176536,1760407860183,-3000.0,0.000248,2]
[391176537,1760407860199,-150.0,0.000248,10]
[391176538,1760407860208,-70510.6809404,0.000248,2]
[391176539,1760407860217,-3000.0,0.0002481,2]
[391176540,1760407860227,-6669.91330707,0.0002481,2]
[391176541,1760407860236,-587.0,0.00024819,2]
[391176542,1760407860250,-3000.0,0.0002482,2]
[391176543,1760407860263,-3000.0,0.0002483,2]
[391176544,1760407860272,-3000.0,0.0002484,2]
[391176545,1760407860283,-3000.0,0.0002485,2]
[391176546,1760407860292,-3000.0,0.0002486,2]
[391176547,1760407860302,-3000.0,0.0002487,2]
[391176548,1760407860311,-500.7058216,0.00024873,2]
[391176549,1760407860320,-500.0,0.00024873,2]
[391176550,1760407860330,-500.0,0.00024873,2]
[391176551,1760407860340,-500.0,0.00024873,2]
[391176552,1760407860349,-500.0,0.00024873,2]
[391176553,1760407860358,-505.48122756,0.00024873,2]
[391176554,1760407860368,-500.0,0.00024873,2]
[391176555,1760407860377,-500.85033142,0.00024873,2]
[391176556,1760407860386,-500.0,0.00024873,2]
[391176557,1760407860395,-500.0,0.00024873,2]
[391176558,1760407860405,-596.07510529,0.00024873,2]
[391176559,1760407860414,-502.74411963,0.00024873,2]
[391176560,1760407860423,-503.74782024,0.00024873,2]
[391176561,1760407860432,-500.0,0.00024873,2]
[391176562,1760407860442,-500.0,0.00024873,2]
[391176563,1760407860451,-500.0,0.00024873,2]
[391176564,1760407860460,-500.0,0.00024873,2]
[391176565,1760407860470,-504.15885043,0.00024873,2]
[391176566,1760407860479,-508.14181388,0.00024873,2]
[391176567,1760407860489,-500.95757379,0.00024873,2]
[391176568,1760407860498,-500.90325951,0.00024873,2]
[391176569,1760407860508,-419.91171798,0.00024873,2]
[391176570,1760407860518,-283.06587868,0.00024873,2]
[391176571,1760407860527,-500.0,0.00024873,2]
[391176572,1760407860536,-501.79111459,0.00024873,2]
[391176573,1760407860546,-313.1410808,0.00024873,2]
[391176574,1760407860555,-500.0,0.00024873,2]
[391176575,1760407860565,-3000.0,0.0002488,2]
[391176576,1760407860574,-3000.0,0.0002489,2]
[391176577,1760407860583,-3000.0,0.000249,2]
[391176578,1760407860592,-419302.226106,0.000249,2]
[391176579,1760407860601,-3000.0,0.0002491,2]
[391176580,1760407860611,-3000.0,0.0002492,2]
[391176581,1760407860620,-3000.0,0.0002493,2]
[391176582,1760407860629,-1500.0,0.00024931,8]
[391176583,1760407860638,-3000.0,0.0002494,2]
[391176584,1760407860649,-3000.0,0.0002495,2]
[391176585,1760407860658,-3000.0,0.0002496,2]
[391176586,1760407860667,-3000.0,0.0002497,2]
[391176587,1760407860677,-3000.0,0.0002498,2]
[391176588,1760407860686,-3000.0,0.0002499,2]
[391176589,1760407860695,-3000.0,0.00025,2]
[391176590,1760407860704,-3000.0,0.0002501,2]
[391176591,1760407860713,-3000.0,0.0002502,2]
[391176592,1760407860722,-3000.0,0.0002503,2]
[391176593,1760407860731,-3000.0,0.0002504,2]
[391176594,1760407860741,-3000.0,0.0002505,2]
[391176595,1760407860750,-1645.0,0.00025055,2]
[391176596,1760407860759,-3000.0,0.0002506,2]
[391176597,1760407860768,-402.34485587,0.00025064,2]
[391176598,1760407860777,-160.0,0.00025064,2]
[391176599,1760407860786,-160.0,0.00025064,2]
[391176600,1760407860795,-3000.0,0.0002507,2]
[391176601,1760407860805,-3000.0,0.0002508,2]
[391176602,1760407860814,-3000.0,0.0002509,2]
[391176603,1760407860824,-161.6984759,0.000251,2]
[391176604,1760407860833,-4683.434975,0.000251,2]
[391176605,1760407860843,-317.06698487,0.00025176,2]
[391176606,1760407860852,-181.29268049,0.0002519,9]
[391176607,1760407860861,-372.161,0.0002519,9]
[391176608,1760407860870,-1500.0,0.00025205,8]
[391176609,1760407860879,-4000.0,0.00025208,2]
[391176610,1760407860888,-161.6984759,0.000253,2]
[391176611,1760407860898,-1001.46367986,0.00025321,2]
[391176612,1760407860907,-507.10817055,0.00025321,2]
[391176613,1760407860916,-1000.0,0.00025321,2]
[391176614,1760407860925,-500.0,0.00025321,2]
[391176615,1760407860935,-1000.0,0.00025421,2]
[391176616,1760407860943,-1000.0,0.00025421,2]
[391176617,1760407860953,-1000.0,0.00025421,2]
[391176618,1760407860963,-508.02299742,0.00025421,2]
[391176619,1760407860972,-1000.0,0.00025421,2]
[391176620,1760407860981,-1000.0,0.00025421,2]
[391176621,1760407860990,-1000.0,0.00025421,2]
[391176622,1760407860999,-1000.0,0.00025421,2]
[391176623,1760407861008,-502.958487,0.00025421,2]
[391176624,1760407861018,-500.0,0.00025421,2]
[391176625,1760407861027,-1000.0,0.00025421,2]
[391176626,1760407861037,-1500.0,0.00025479,8]
[391176627,1760407861046,-161.6984759,0.000256,2]
[391176628,1760407861056,-4199.0,0.00025695,2]
[391176629,1760407861066,-1500.0,0.00025753,8]
[391176630,1760407861075,-3067.01941196,0.00025756,2]
[391176631,1760407861085,-340.26700816,0.00025776,2]
[391176632,1760407861094,-161.6984759,0.000258,2]
[391176633,1760407861104,-500.96617393,0.00025831,2]
[391176634,1760407861114,-249.70228567,0.00025831,2]
[391176635,1760407861123,-500.0,0.00025831,2]
[391176636,1760407861132,-500.0,0.00025831,2]
[391176637,1760407861142,-500.0,0.00025831,2]
[391176638,1760407861151,-1500.0,0.00025868,2]
[391176639,1760407861160,-1138.67,0.00025893,2]
[391176640,1760407861169,-864.0,0.00025901,20]
[391176641,1760407861179,-500.0,0.00025958,2]
[391176642,1760407861188,-1000.0,0.00025968,2]
[391176643,1760407861197,-484.86286373,0.00025968,2]
[391176644,1760407861206,-1500.0,0.00025968,2]
[391176645,1760407861218,-440.50785904,0.00025968,2]
[391176646,1760407861227,-1500.0,0.00025968,2]
[391176647,1760407861236,-1500.0,0.00025968,2]
[391176648,1760407861246,-500.0,0.00025993,2]
[391176649,1760407861256,-1009.11746002,0.00026027,8]
[391176650,1760407861266,-10022.3,0.00026027,2]
[391176651,1760407861276,-151.171,0.00026033,2]
[391176652,1760407861289,-150.109,0.00026033,2]
[391176653,1760407861298,-150.921,0.00026033,2]
[391176654,1760407861308,-207.19,0.00026033,2]
[391176655,1760407861317,-981.0,0.00026063,2]
[391176656,1760407861327,-2161.0,0.00026063,2]
[391176657,1760407861337,-631.0,0.00026063,2]
[391176658,1760407861346,-161.6984759,0.000261,2]
[391176659,1760407861356,-402.43064913,0.000261,3]
[391176660,1760407861365,-56648.46,0.000262,7]
[391176661,1760407861461,-363.46703144,0.00026376,2]
[391176662,1760407861471,-500.0,0.00026379,2]
[391176663,1760407861481,-507.94926773,0.00026379,2]
[391176664,1760407861491,-2000.0,0.00026416,2]
[391176665,1760407861501,-6669.913307,0.00026487,2]
[391176666,1760407861511,-1000.0,0.00026506,2]
[391176667,1760407861521,-1113.00948021,0.00026516,2]
[391176668,1760407861530,-514.47427922,0.00026516,2]
[391176669,1760407861540,-500.0,0.00026541,2]
[391176670,1760407861549,-160.0,0.00026818,3]
[391176671,1760407861560,-2500.0,0.00026964,2]
[391176672,1760407861569,-386.66705472,0.00026976,2]
[391176673,1760407861579,-823.0,0.00026998,2]
[391176674,1760407861589,-1518.23,0.00027019,2]
[391176675,1760407861599,-10022.3,0.00027397,4]
[391176676,1760407861608,-4048.89,0.000274,2]
[391176677,1760407861618,-7041.55,0.000274,2]
[391176678,1760407861627,-157.47642121,0.0002743,2]
[391176679,1760407861638,-3000.0,0.00027512,5]
[391176680,1760407861647,-409.86707801,0.00027576,2]
[391176681,1760407861656,-464.353221,0.00027576,14]
[391176682,1760407861666,-160.0,0.00027606,4]
[391176683,1760407861675,-800.0,0.00027699,2]
[391176684,1760407861684,-200.0,0.00027728,2]
[391176685,1760407861693,-402.43064913,0.00028,10]
[391176686,1760407861702,-265.8062376,0.00028,10]
[391176687,1760407861712,-2000.0,0.00028,4]
[391176688,1760407861722,-521.416458,0.0002806,5]
[391176689,1760407861731,-2203.936,0.00028096,2]
[391176690,1760407861740,-500.933,0.00028096,2]
[391176691,1760407861749,-1897.79,0.00028145,2]
[391176692,1760407861759,-6669.913307,0.00028163,2]
[391176693,1760407861768,-433.06710129,0.00028176,2]
[391176694,1760407861778,-175.0,0.00028192,28]
[391176695,1760407861787,-800.0,0.00028344,2]
[391176696,1760407861797,-151.0,0.00028367,2]
[391176697,1760407861806,-162.380719,0.00028367,2]
[391176698,1760407861818,-151.0,0.00028367,2]
[391176699,1760407861827,-250.0,0.00028367,2]
[391176700,1760407861837,-500.0,0.00028367,2]
[391176701,1760407861846,-151.0,0.00028367,2]
[391176702,1760407861856,-2030.296672,0.00028367,2]
[391176703,1760407861866,-151.0,0.00028367,2]
[391176704,1760407861876,-250.0,0.00028367,2]
[391176705,1760407861886,-500.0,0.00028367,2]
[391176706,1760407861895,-151.0,0.00028367,2]
[391176707,1760407861905,-152.7921576,0.00028367,2]
[391176708,1760407861915,-250.0,0.00028367,2]
[391176709,1760407861924,-500.0,0.00028367,2]
[391176710,1760407861935,-151.0,0.00028367,2]
[391176711,1760407861946,-250.0,0.00028367,2]
[391176712,1760407861956,-500.0,0.00028367,2]
[391176713,1760407861970,-151.0,0.00028367,2]
[391176714,1760407861979,-2618.96571557,0.00028367,2]
[391176715,1760407861989,-250.0,0.00028367,2]
[391176716,1760407861998,-1000.0,0.00028367,2]
[391176717,1760407862008,-500.0,0.00028367,2]
[391176718,1760407862018,-151.0,0.00028367,2]
[391176719,1760407862027,-250.0,0.00028367,2]
[391176720,1760407862037,-1000.0,0.00028367,2]
[391176721,1760407862046,-500.0,0.00028367,2]
[391176722,1760407862055,-151.0,0.00028367,2]
[391176723,1760407862065,-1000.0,0.00028367,2]
[391176724,1760407862074,-500.0,0.00028367,2]
[391176725,1760407862084,-250.0,0.00028367,2]
[391176726,1760407862093,-1000.0,0.00028367,2]
[391176727,1760407862102,-500.0,0.00028367,2]
[391176728,1760407862111,-250.0,0.00028367,2]
[391176729,1760407862120,-1000.0,0.00028367,2]
[391176730,1760407862129,-500.0,0.00028367,2]
[391176731,1760407862139,-250.0,0.00028367,2]
[391176732,1760407862148,-1000.0,0.00028367,2]
[391176733,1760407862157,-500.0,0.00028367,2]
[391176734,1760407862167,-250.0,0.00028367,2]
[391176735,1760407862177,-1000.0,0.00028367,2]
[391176736,1760407862187,-500.0,0.00028367,2]
[391176737,1760407862197,-1000.0,0.00028367,2]
[391176738,1760407862207,-250.0,0.00028367,2]
[391176739,1760407862216,-151.0,0.00028367,2]
[391176740,1760407862225,-500.0,0.00028367,2]
[391176741,1760407862235,-1000.0,0.00028367,2]
[391176742,1760407862244,-1000.0,0.00028367,2]
[391176743,1760407862253,-250.0,0.00028367,2]
[391176744,1760407862267,-151.0,0.00028367,2]
[391176745,1760407862276,-500.0,0.00028367,2]
[391176746,1760407862288,-1000.0,0.00028367,2]
[391176747,1760407862297,-1000.0,0.00028367,2]
[391176748,1760407862306,-250.0,0.00028367,2]
[391176749,1760407862318,-151.0,0.00028367,2]
[391176750,1760407862327,-500.0,0.00028367,2]
[391176751,1760407862336,-1000.0,0.00028367,2]
[391176752,1760407862345,-1000.0,0.00028367,2]
[391176753,1760407862355,-250.0,0.00028367,2]
[391176754,1760407862370,-151.0,0.00028367,2]
[391176755,1760407862379,-500.0,0.00028367,2]
[391176756,1760407862389,-820.10634659,0.00028367,2]
[391176757,1760407862398,-1000.0,0.00028367,2]
[391176758,1760407862408,-151.0,0.00028367,2]
[391176759,1760407862418,-500.0,0.00028367,2]
[391176760,1760407862429,-250.0,0.00028367,2]
[391176761,1760407862438,-1000.0,0.00028367,2]
[391176762,1760407862448,-151.0,0.00028367,2]
[391176763,1760407862457,-622.89075054,0.00028367,2]
[391176764,1760407862467,-250.0,0.00028367,2]
[391176765,1760407862476,-1000.0,0.00028367,2]
[391176766,1760407862486,-151.0,0.00028367,2]
[391176767,1760407862495,-250.0,0.00028367,2]
[391176768,1760407862505,-151.0,0.00028367,2]
[391176769,1760407862514,-1000.0,0.00028367,2]
[391176770,1760407862524,-151.0,0.00028367,2]
[391176771,1760407862533,-250.0,0.00028367,2]
[391176772,1760407862543,-151.0,0.00028367,2]
[391176773,1760407862551,-250.0,0.00028367,2]
[391176774,1760407862562,-151.0,0.00028367,2]
[391176775,1760407862571,-1000.0,0.00028367,2]
[391176776,1760407862580,-151.0,0.00028367,2]
[391176777,1760407862589,-151.0,0.00028367,2]
[391176778,1760407862598,-1000.0,0.00028367,2]
[391176779,1760407862607,-250.0,0.00028367,2]
[391176780,1760407862617,-151.0,0.00028367,2]
[391176781,1760407862626,-151.0,0.00028367,2]
[391176782,1760407862635,-1000.0,0.00028367,2]
[391176783,1760407862644,-250.0,0.00028367,2]
[391176784,1760407862654,-151.0,0.00028367,2]
[391176785,1760407862663,-151.0,0.00028367,2]
[391176786,1760407862674,-1000.0,0.00028367,2]
[391176787,1760407862683,-250.0,0.00028367,2]
[391176788,1760407862692,-151.0,0.00028367,2]
[391176789,1760407862701,-151.0,0.00028367,2]
[391176790,1760407862710,-1000.0,0.00028367,2]
[391176791,1760407862719,-250.0,0.00028367,2]
[391176792,1760407862729,-151.0,0.00028367,2]
[391176793,1760407862738,-151.0,0.00028367,2]
[391176794,1760407862747,-1000.0,0.00028367,2]
[391176795,1760407862756,-151.0,0.00028367,2]
[391176796,1760407862765,-250.0,0.00028367,2]
[391176797,1760407862774,-1000.0,0.00028367,2]
[391176798,1760407862783,-250.0,0.00028367,2]
[391176799,1760407862792,-151.0,0.00028367,2]
[391176800,1760407862802,-1000.0,0.00028367,2]
[391176801,1760407862815,-151.0,0.00028367,2]
[391176802,1760407862824,-151.0,0.00028367,2]
[391176803,1760407862834,-250.0,0.00028367,2]
[391176804,1760407862843,-151.0,0.00028367,2]
[391176805,1760407862852,-1000.0,0.00028367,2]
[391176806,1760407862862,-151.0,0.00028367,2]
[391176807,1760407862871,-250.0,0.00028367,2]
[391176808,1760407862880,-151.0,0.00028367,2]
[391176809,1760407862889,-151.0,0.00028367,2]
[391176810,1760407862898,-151.0,0.00028367,2]
[391176811,1760407862907,-1000.0,0.00028367,2]
[391176812,1760407862916,-151.0,0.00028367,2]
[391176813,1760407862926,-250.0,0.00028367,2]
[391176814,1760407862935,-151.0,0.00028367,2]
[391176815,1760407862944,-162.380719,0.00028367,2]
[391176816,1760407862954,-151.0,0.00028367,2]
[391176817,1760407862963,-1000.0,0.00028367,2]
[391176818,1760407862973,-151.0,0.00028367,2]
[391176819,1760407862983,-250.0,0.00028367,2]
[391176820,1760407862992,-151.0,0.00028367,2]
[391176821,1760407863001,-1000.0,0.00028367,2]
[391176822,1760407863010,-250.0,0.00028367,2]
[391176823,1760407863020,-151.0,0.00028367,2]
[391176824,1760407863030,-250.0,0.00028367,2]
[391176825,1760407863039,-151.0,0.00028367,2]
[391176826,1760407863048,-250.0,0.00028367,2]
[391176827,1760407863058,-151.0,0.00028367,2]
[391176828,1760407863071,-260.07756688,0.00028367,2]
[391176829,1760407863081,-151.0,0.00028367,2]
[391176830,1760407863090,-151.0,0.00028367,2]
[391176831,1760407863100,-151.0,0.00028367,2]
[391176832,1760407863193,-500.0,0.00028367,2]
[391176833,1760407863203,-151.0,0.00028367,2]
[391176834,1760407863212,-500.0,0.00028367,2]
[391176835,1760407863222,-18603.8837,0.00028367,2]
[391176836,1760407863232,-151.0,0.00028367,2]
[391176837,1760407863242,-500.0,0.00028367,2]
[391176838,1760407863251,-151.0,0.00028367,2]
[391176839,1760407863260,-500.0,0.00028367,2]
[391176840,1760407863270,-151.0,0.00028367,2]
[391176841,1760407863280,-500.0,0.00028367,2]
[391176842,1760407863292,-151.0,0.00028367,2]
[391176843,1760407863302,-500.0,0.00028367,2]
[391176844,1760407863312,-297.08905221,0.00028367,2]
[391176845,1760407863322,-151.0,0.00028367,2]
[391176846,1760407863331,-500.0,0.00028367,2]
[391176847,1760407863341,-151.72188997,0.00028367,2]
[391176848,1760407863350,-521.78756786,0.00028367,2]
[391176849,1760407863360,-152.02672942,0.00028373,5]
[391176850,1760407863370,-160.0,0.00028393,5]
[391176851,1760407863379,-150.0,0.000284,5]
[391176852,1760407863388,-1424.25330228,0.00028422,2]
[391176853,1760407863397,-1000.0,0.00028491,30]
[391176854,1760407863406,-56648.46,0.000287,7]
[391176855,1760407863415,-3796.89238109,0.00028733,2]
[391176856,1760407863426,-10022.3,0.00028767,6]
[391176857,1760407863435,-800.0,0.00028769,2]
[391176858,1760407863444,-456.26712457,0.00028776,2]
[391176859,1760407863453,-800.0,0.0002881,2]
[391176860,1760407863463,-800.0,0.00028818,2]
[391176861,1760407863472,-748.0,0.0002888,2]
[391176862,1760407863482,-800.0,0.00028901,2]
[391176863,1760407863491,-1000.0,0.00028912,5]
[391176864,1760407863501,-151.0,0.00028915,2]
[391176865,1760407863511,-168.3888056,0.00028915,2]
[391176866,1760407863520,-19292.2273969,0.00028915,2]
[391176867,1760407863530,-301.77797328,0.00028948,5]
[391176868,1760407863539,-1459.459,0.00029,120]
[391176869,1760407863548,-1071.91,0.00029,2]
[391176870,1760407863557,-7041.55,0.00029,2]
[391176871,1760407863567,-1104.65859027,0.00029,2]
[391176872,1760407863576,-748.0,0.00029023,2]
[391176873,1760407863586,-150.0,0.00029033,2]
[391176874,1760407863595,-981.0,0.00029063,2]
[391176875,1760407863605,-2161.0,0.00029063,2]
[391176876,1760407863614,-631.0,0.00029063,2]
[391176877,1760407863623,-1653.0,0.00029068,7]
[391176878,1760407863632,-700.0,0.00029141,7]
[391176879,1760407863642,-1071.91,0.00029174,2]
[391176880,1760407863650,-160.0,0.00029181,6]
[391176881,1760407863659,-4048.89,0.000292,2]
[391176882,1760407863669,-2277.35,0.00029271,2]
[391176883,1760407863679,-500.0,0.00029315,30]
[391176884,1760407863689,-500.0,0.00029315,30]
[391176885,1760407863698,-500.0,0.00029315,30]
[391176886,1760407863707,-500.0,0.00029315,30]
[391176887,1760407863717,-500.0,0.00029315,30]
[391176888,1760407863727,-500.0,0.00029315,30]
[391176889,1760407863736,-500.0,0.00029315,30]
[391176890,1760407863745,-500.0,0.00029315,30]
[391176891,1760407863755,-500.0,0.00029315,30]
[391176892,1760407863764,-324.4654374,0.00029315,30]
[391176893,1760407863773,-1071.91,0.00029348,2]
[391176894,1760407863783,-1152.0,0.00029369,2]
[391176895,1760407863792,-479.46714786,0.00029376,2]
[391176896,1760407863801,-159198.4611,0.00029444,2]
[391176897,1760407863812,-151.0,0.00029444,30]
[391176898,1760407863820,-151.0,0.00029444,30]
[391176899,1760407863830,-151.0,0.00029444,30]
[391176900,1760407863839,-152.529517,0.00029444,30]
[391176901,1760407863848,-151.0,0.00029444,30]
[391176902,1760407863857,-152.538745,0.00029444,30]
[391176903,1760407863866,-151.0,0.00029444,30]
[391176904,1760407863875,-151.0,0.00029444,30]
[391176905,1760407863884,-151.0,0.00029444,30]
[391176906,1760407863893,-151.03972356,0.00029444,30]
[391176907,1760407863902,-284.911422,0.00029444,30]
[391176908,1760407863911,-151.0,0.00029444,30]
[391176909,1760407863920,-151.0,0.00029444,30]
[391176910,1760407863929,-151.0,0.00029444,30]
[391176911,1760407863938,-207.208477,0.00029444,30]
[391176912,1760407863947,-151.90355,0.00029444,30]
[391176913,1760407863956,-207.208477,0.00029444,30]
[391176914,1760407863965,-151.0,0.00029444,30]
[391176915,1760407863974,-207.208477,0.00029444,30]
[391176916,1760407863983,-207.208477,0.00029444,30]
[391176917,1760407863992,-151.85175,0.00029444,30]
[391176918,1760407864001,-151.469172,0.00029444,30]
[391176919,1760407864010,-386.657238,0.00029444,30]
[391176920,1760407864019,-386.657238,0.00029444,30]
[391176921,1760407864029,-386.657238,0.00029444,30]
[391176922,1760407864038,-386.657238,0.00029444,30]
[391176923,1760407864048,-151.0,0.00029444,30]
[391176924,1760407864057,-151.0,0.00029444,30]
[391176925,1760407864070,-151.0,0.00029444,30]
[391176926,1760407864079,-151.0,0.00029444,30]
[391176927,1760407864089,-744.889284,0.00029444,30]
[391176928,1760407864098,-159.557872,0.00029444,30]
[391176929,1760407864107,-744.889284,0.00029444,30]
[391176930,1760407864116,-744.889284,0.00029444,30]
[391176931,1760407864126,-800.0,0.00029453,2]
[391176932,1760407864136,-600.0,0.0002946,2]
[391176933,1760407864146,-167.80282393,0.00029463,2]
[391176934,1760407864155,-320.23838143,0.00029463,2]
[391176935,1760407864165,-20006.03981059,0.00029463,2]
[391176936,1760407864174,-1653.0,0.00029499,2]
[391176937,1760407864183,-1507.642386,0.000295,2]
[391176938,1760407864192,-1071.91,0.00029522,2]
[391176939,1760407864201,-748.0,0.0002954,7]
[391176940,1760407864210,-600.0,0.00029548,2]
[391176941,1760407864219,-150.65480345,0.00029558,7]
[391176942,1760407864228,-800.0,0.0002963,2]
[391176943,1760407864238,-1071.91,0.00029696,2]
[391176944,1760407864247,-748.0,0.00029704,2]
[391176945,1760407864256,-168.3888056,0.00029736,2]
[391176946,1760407864266,-748.0,0.00029785,2]
[391176947,1760407864275,-1653.0,0.00029823,2]
[391176948,1760407864288,-6669.913307,0.0002984,2]
[391176949,1760407864298,-600.0,0.00029856,2]
[391176950,1760407864307,-3576.29368848,0.00029919,5]
[391176951,1760407864318,-700.0,0.00029963,7]
[391176952,1760407864328,-160.0,0.00029969,7]
[391176953,1760407864337,-150.0,0.00029973,5]
[391176954,1760407864347,-500.0,0.00029973,5]
[391176955,1760407864357,-269.71089418,0.00029973,5]
[391176956,1760407864366,-500.0,0.00029973,5]
[391176957,1760407864375,-500.0,0.00029973,5]
[391176958,1760407864384,-219.33026451,0.00029973,5]
[391176959,1760407864393,-502.66717114,0.00029976,2]
[391176960,1760407864403,-800.0,0.00029991,2]
[391176961,1760407864412,-200.0,0.00029999,10]
[391176962,1760407864422,-243.36953757,0.00029999,10]
[391176963,1760407864431,-200.0,0.00029999,10]
[391176964,1760407864440,-1644891.27497773,0.0003,9]
[391176965,1760407864449,-102416.72959898,0.0003,5]
[391176966,1760407864458,-205.215,0.0003,2]
[391176967,1760407864467,-8680.0,0.0003,60]
[391176968,1760407864476,-151.69239,0.0003,30]
[391176969,1760407864485,-151.0,0.0003,30]
[391176970,1760407864495,-151.0,0.0003,30]
[391176971,1760407864504,-151.514616,0.0003,30]
[391176972,1760407864513,-151.0,0.0003,30]
[391176973,1760407864523,-154.473212,0.0003,30]
[391176974,1760407864531,-151.0,0.0003,30]
[391176975,1760407864541,-151.0,0.0003,30]
[391176976,1760407864550,-151.0,0.0003,30]
[391176977,1760407864559,-151.0,0.0003,30]
[391176978,1760407864570,-151.0,0.0003,30]
[391176979,1760407864579,-151.0,0.0003,30]